[Event "20th Prague Open 2022"]
[Site "Prague"]
[Date "2022.01.07"]
[Round "1.24"]
[White "Sinervuo, Veli-Pekka"]
[Black "Dev, Shah"]
[Result "0-1"]
[ECO "C50"]
[WhiteElo "1892"]
[BlackElo "2243"]
[Annotator "ChessBase"]
[PlyCount "38"]
[EventDate "2022.01.07"]
[EventType "swiss"]
[EventCountry "CZE"]
[SourceTitle "playchess.com"]
[Source "ChessBase"]
[SourceQuality "1"]
[TimeControl "40/5400+30:1800+30"]

1. e4 {[%emt 0:00:06]} e5 {[%emt 0:00:18]} 2. Nf3 {[%emt 0:00:13]} Nc6 {[%emt 0:00:05]} 3. Bc4 {[%emt 0:00:28]} Bc5 {[%emt 0:00:07]} 4. O-O {[%emt 0:01:32]} Nf6 {[%emt 0:00:05]} 5. d3 {[%emt 0:00:09]} h6 {[%emt 0:00:09]} 6. c3 {[%emt 0:00:43]} d6 {[%emt 0:00:06]} 7. Nbd2 {[%emt 0:02:56]} O-O {[%emt 0:00:14]} 8. b4 {[%emt 0:00:33]} Bb6 {[%emt 0:00:06]} 9. Bb3 {[%emt 0:01:00]} a6 {[%emt 0:03:04]} 10. Nc4 {[%emt 0:00:31]} Ba7 {[%emt 0:00:06]} 11. Ne3 {[%emt 0:06:30]} Ne7 {[%emt 0:02:07]} 12. Bc2 {[%emt 0:05:35]} Bxe3 {[%emt 0:03:22]} 13. Bxe3 {[%emt 0:01:21]} Bg4 {[%emt 0:02:25]} 14. h3 {[%emt 0:08:08]} Bh5 {[%emt 0:00:10]} 15. g3 Qd7 {[%emt 0:25:37]} 16. Kg2 {[%emt 0:04:19]} Ng6 {[%emt 0:08:54]} 17. Rh1 {[%emt 0:14:22]} d5 {[%emt 0:02:44]} 18. Qd2 {[%emt 0:06:42]} Rad8 {[%emt 0:02:19]} 19. Rad1 Qc6 0-1